bitfinex/quotes_SOLUSD_20240909
["timestamp","ask_amount","ask_price","bid_price","bid_amount"]
[1725923768661,15.8461,134.79,134.74,1.48398224]
[1725923773264,15.8461,134.79,134.73,50.0]
[1725923781648,15.8461,134.79,134.75,50.0]
[1725923781858,6.0266,134.8,134.76,1.4838243]
[1725923782188,21.7251,134.83,134.77,51.48364463]
[1725923782552,21.7251,134.83,134.78,1.48358583]
[1725923783274,21.7251,134.83,134.77,60.40657387]
[1725923786976,21.7251,134.83,134.79,50.0]
[1725923787158,21.7251,134.83,134.8,1.48338326]
[1725923787757,21.7251,134.83,134.79,50.0]
[1725923788387,21.7251,134.83,134.8,1.48342082]
[1725923789076,21.7251,134.83,134.77,50.0]
[1725923792169,21.7251,134.83,134.75,50.0]
[1725923794870,21.7251,134.83,134.77,50.0]
[1725923795583,21.7251,134.83,134.78,5.76561143]
[1725923795787,21.7251,134.83,134.77,50.0]
[1725923795986,21.7251,134.83,134.78,5.76556067]
[1725923796192,21.7251,134.83,134.77,50.0]
[1725923796669,21.7251,134.83,134.78,7.24913081]
[1725923796873,21.7251,134.83,134.78,1.48353951]
[1725923798306,21.7251,134.83,134.77,50.0]
[1725923798509,21.7251,134.83,134.78,5.76555204]
[1725923798669,21.7251,134.83,134.77,50.0]
[1725923798869,21.7251,134.83,134.78,5.76555071]
[1725923799181,21.7251,134.83,134.77,50.0]
[1725923799379,21.7251,134.83,134.78,5.76558104]
[1725923799579,21.7251,134.83,134.77,50.0]
[1725923799789,21.7251,134.83,134.78,5.76559589]
[1725923799974,21.7251,134.83,134.77,50.0]
[1725923800177,21.7251,134.83,134.78,5.76559605]
[1725923800513,21.7251,134.83,134.77,50.0]
[1725923800696,21.7251,134.83,134.78,5.76558114]
[1725923800896,21.7251,134.83,134.77,50.0]
[1725923801075,21.7251,134.83,134.78,5.76558197]
[1725923801274,21.7251,134.83,134.77,50.0]
[1725923801589,21.7251,134.83,134.78,5.76558303]
[1725923801777,21.7251,134.83,134.77,50.0]
[1725923801977,21.7251,134.83,134.78,5.76558289]
[1725923802201,21.7251,134.83,134.77,50.0]
[1725923802384,21.7251,134.83,134.78,5.76558307]
[1725923802708,21.7251,134.83,134.77,50.0]
[1725923803010,21.7251,134.83,134.78,5.76558097]
[1725923803211,21.7251,134.83,134.77,50.0]
[1725923803497,21.7251,134.83,134.78,5.76558399]
[1725923803672,21.7251,134.83,134.77,50.0]
[1725923805717,21.7251,134.83,134.78,1.48354337]
[1725923808818,21.7251,134.83,134.77,60.40657387]
[1725923809905,21.7251,134.83,134.79,50.0]
[1725923810222,21.7251,134.83,134.8,1.48336652]
[1725923811220,0.848155,134.84,134.8,1.48336652]
[1725923811401,0.848155,134.84,134.81,50.0]
[1725923811602,0.848155,134.84,134.82,1.48311674]
[1725923811796,0.848155,134.84,134.83,1.4831113]
[1725923813023,0.848155,134.84,134.82,1.48310829]
[1725923813221,0.848155,134.84,134.83,1.4831058]
[1725923813595,0.848155,134.84,134.83,62.01516967]
[1725923813799,0.848155,134.84,134.83,107.01516967]
[1725923814220,0.848155,134.84,134.83,105.53206387]
[1725923815300,0.848155,134.84,134.83,125.53206387]
[1725923818917,22.1956,134.91,134.87,50.0]
[1725923819112,22.1956,134.91,134.88,1.48249979]
[1725923819317,22.1956,134.91,134.89,50.0]
[1725923820109,0.047,134.95,134.91,50.0]
[1725923820515,0.047,134.95,134.92,1.48211458]
[1725923820712,0.047,134.95,134.89,10.40657387]
[1725923820713,0.047,134.95,134.89,50.0]
[1725923820906,22.8934,134.94,134.87,50.0]
[1725923821331,22.8934,134.94,134.88,45.0]
[1725923821930,22.8934,134.94,134.87,50.0]
[1725923823236,22.8934,134.94,134.88,0.12549]
[1725923823408,22.8934,134.94,134.89,50.0]
[1725923826214,22.8934,134.94,134.9,1.48231427]
[1725923826416,22.8934,134.94,134.91,50.0]
[1725923826736,0.047,134.95,134.92,1.4820673]
[1725923826914,0.047,134.95,134.93,1.48189796]
[1725923828329,0.047,134.95,134.93,51.48189796]
[1725923829226,0.047,134.95,134.94,10.53206387]
[1725923829433,0.047,134.95,134.94,55.53206387]
[1725923829738,0.047,134.95,134.94,57.0136784]
[1725923830324,0.848155,134.97,134.96,50.0]
[1725923830523,0.848155,134.97,134.96,115.12549]
[1725923835521,0.848155,134.97,134.96,70.0]
[1725923835727,0.848155,134.97,134.96,50.0]
[1725923837041,0.848155,134.97,134.96,50.12549]
[1725923837538,0.848155,134.97,134.96,95.12549]
[1725923840330,0.848155,134.97,134.96,107.01353622]
[1725923840518,0.848155,134.97,134.96,127.01353622]
[1725923844945,21.5868,135.06,135.0,50.0]
[1725923845152,21.5868,135.06,135.01,45.0]
[1725923846154,21.5868,135.06,135.02,1.48094852]
[1725923846961,21.5868,135.06,135.02,51.48094852]
[1725923847138,21.5868,135.06,135.02,50.0]
[1725923847842,21.5868,135.06,135.0,50.0]
[1725923848339,21.5868,135.06,135.01,1.48108081]
[1725923848661,21.5868,135.06,135.0,50.0]
[1725923849060,21.5868,135.06,135.01,1.48092112]
[1725923849242,21.5868,135.06,135.02,51.48089291]
[1725923850357,21.5868,135.06,135.03,45.0]
[1725923850549,0.848155,135.11,135.02,50.0]
[1725923850750,15.9044,135.09,135.03,115.0]
[1725923851043,15.9044,135.09,135.03,50.0]
[1725923852157,15.9044,135.09,135.04,1.48089299]
[1725923853155,15.9044,135.09,135.01,50.12549]
[1725923853352,15.9044,135.09,135.02,45.0]
[1725923853557,15.9044,135.09,135.03,1.48085489]
[1725923853741,15.9044,135.09,135.02,45.0]
[1725923855448,15.9044,135.09,135.01,50.12549]
[1725923856861,15.9044,135.09,135.01,50.0]
[1725923856862,6.5007,135.08,135.01,50.0]
[1725923857362,6.5007,135.08,134.99,50.0]
[1725923857836,6.5007,135.08,134.98,10.53206387]
[1725923857837,6.5007,135.08,135.01,50.0]
[1725923858242,6.5007,135.08,134.99,50.0]
[1725923858451,6.5007,135.08,135.0,45.0]
[1725923858660,15.9743,135.07,134.99,50.0]
[1725923858883,6.4489,135.06,134.99,50.0]
[1725923859347,6.4489,135.06,134.97,50.0]
[1725923859543,6.4489,135.06,134.98,20.0]
[1725923860262,15.022,135.05,134.97,50.0]
[1725923860762,15.2382,135.03,134.95,50.0]
[1725923862168,15.2382,135.03,134.96,20.0]
[1725923865950,15.2382,135.03,134.97,1.48163663]
[1725923866659,15.2382,135.03,134.96,20.0]
[1725923867466,15.2382,135.03,134.97,1.4815519]
[1725923869147,15.2382,135.03,134.97,51.4815519]
[1725923869756,15.2382,135.03,134.97,50.0]
[1725923870762,15.2382,135.03,134.98,1.48146075]
[1725923870965,15.2382,135.03,134.97,50.0]
[1725923871167,22.8273,135.07,134.99,50.0]
[1725923871470,22.8273,135.07,135.0,21.48110589]
[1725923871651,22.8273,135.07,135.0,1.48110589]
[1725923872050,22.8273,135.07,135.0,20.12549]
[1725923872252,22.8273,135.07,135.01,45.0]
[1725923872554,22.8273,135.07,134.97,50.0]
[1725923874584,22.8273,135.07,134.98,20.0]
[1725923874756,22.6633,135.05,134.98,20.0]
[1725923877561,22.6633,135.05,134.99,1.4814757]
[1725923879579,22.6633,135.05,134.98,20.0]
[1725923882563,22.6633,135.05,134.99,1.48134689]
[1725923882968,22.6633,135.05,134.99,51.48134689]
[1725923884279,22.6633,135.05,134.99,50.0]
[1725923884457,22.6633,135.05,135.0,1.48114937]
[1725923884993,22.6633,135.05,134.99,50.0]
[1725923886059,22.6633,135.05,135.0,1.48109209]
[1725923886769,22.6633,135.05,134.99,50.0]
[1725923887657,22.6633,135.05,135.0,1.48109007]
[1725923888112,22.6633,135.05,134.99,50.0]
[1725923892092,22.6633,135.05,135.0,1.48119983]
[1725923892485,22.6633,135.05,135.0,66.48119983]
[1725923892676,22.6633,135.05,135.0,65.0]
[1725923895123,22.6633,135.05,135.0,20.0]
[1725923895312,22.6633,135.05,134.97,50.0]
[1725923899612,22.5144,135.04,134.96,7.74374509]
[1725923899823,22.5144,135.02,134.94,10.40657387]
[1725923900324,22.5144,135.02,134.93,50.0]
[1725923901014,22.5144,135.02,134.94,45.0]
[1725923901222,22.5144,135.02,134.94,20.0]
[1725923903119,15.3067,135.0,134.93,50.0]
[1725923903326,6.5344,134.99,134.91,60.40657387]
[1725923904618,6.5344,134.99,134.92,20.0]
[1725923906314,6.5344,134.99,134.93,1.48195706]
[1725923906634,6.5344,134.99,134.93,61.88853093]
[1725923906913,6.5344,134.99,134.95,50.0]
[1725923907119,6.5344,134.99,134.96,1.48161044]
[1725923914122,15.3067,135.0,134.97,50.0]
[1725923914299,15.3067,135.0,134.98,1.48132108]
[1725923914501,6.6138,135.02,134.98,1.48132108]
[1725923915431,6.6138,135.02,134.99,50.0]
[1725923917636,6.6138,135.02,134.97,10.40657387]
[1725923917637,6.6138,135.02,134.97,60.40657387]
[1725923917839,6.6138,135.02,134.98,21.48129953]
[1725923918614,6.6138,135.02,134.98,20.0]
[1725923922140,6.6138,135.02,134.99,10.40657387]
[1725923922338,6.344,135.06,135.0,70.0]
[1725923922530,6.344,135.06,135.01,1.48104438]
[1725923922731,6.344,135.06,135.02,1.48094037]
[1725923923437,6.344,135.06,135.02,51.48094037]
[1725923923641,6.344,135.06,135.03,1.48089329]
[1725923924826,6.344,135.06,135.02,50.0]
[1725923925028,6.344,135.06,135.0,70.0]
[1725923925424,6.344,135.06,135.01,5.72647056]
[1725923925625,6.344,135.06,135.02,7.20749545]
[1725923925828,6.344,135.06,135.03,5.72647056]
[1725923926054,6.344,135.06,135.04,5.72647056]
[1725923926226,6.344,135.06,135.02,1.48102489]
[1725923926545,6.344,135.06,135.03,5.72553725]
[1725923926734,6.344,135.06,135.0,70.0]
[1725923926931,6.344,135.06,135.01,5.72639006]
[1725923927236,15.6315,135.05,135.02,5.72639006]
[1725923927446,15.6315,135.05,135.0,21.48126817]
[1725923927640,15.6315,135.05,135.01,5.72718439]
[1725923927843,15.6315,135.05,135.02,5.72718439]
[1725923928159,15.6315,135.05,135.0,51.48126817]
[1725923928348,15.6315,135.05,135.01,5.72733776]
[1725923928549,15.6315,135.05,135.02,5.72733776]
[1725923928851,15.6315,135.05,135.03,5.7269144]
[1725923929053,15.6315,135.05,135.0,50.0]
[1725923930246,15.6315,135.05,135.01,1.48103511]
[1725923930452,15.6315,135.05,135.02,1.48096503]
[1725923931541,16.5521,135.08,135.03,51.48096938]
[1725923932953,16.5521,135.08,135.01,70.0]
[1725923933151,16.5521,135.08,135.02,45.0]
[1725923933353,16.5521,135.08,135.03,20.0]
[1725923935341,16.5521,135.08,135.02,20.0]
[1725923936034,16.5521,135.08,135.0,20.0]
[1725923936961,16.5521,135.08,134.99,50.0]
[1725923937170,16.5521,135.08,135.0,1.48109796]
[1725923938056,16.5521,135.08,134.99,60.40657387]
[1725923938559,16.5521,135.08,135.0,20.0]
[1725923939766,6.4048,135.07,135.0,20.0]
[1725923942148,6.4048,135.07,135.0,21.48129823]
[1725923942348,6.4048,135.07,135.0,20.0]
[1725923943940,0.12549,135.06,134.97,50.0]
[1725923944146,16.2825,135.05,134.97,50.0]
[1725923944441,0.12549,135.03,134.96,7.71898119]
[1725923944647,6.4301,135.01,134.93,50.0]
[1725923944870,6.4301,135.01,134.93,57.72652202]
[1725923945447,6.4301,135.01,134.93,7.72652202]
[1725923945646,0.12549,135.0,134.91,50.0]
[1725923946361,0.12549,135.0,134.92,1.48194686]
[1725923946568,0.12549,135.0,134.93,1.48197177]
[1725923947143,6.4301,135.01,134.93,51.48197177]
[1725923947348,6.4301,135.01,134.94,20.0]
[1725923947547,6.4301,135.01,134.95,1.48174317]
[1725923948267,6.4301,135.01,134.96,11.88831957]
[1725923949665,6.4301,135.01,134.97,21.48145851]
[1725923949863,6.4301,135.01,134.97,71.48145851]
[1725923952353,6.4301,135.01,134.98,1.48135289]
[1725923952552,6.4301,135.01,134.99,1.48135256]
[1725923953565,6.4301,135.01,134.98,1.48135331]
[1725923953758,6.4301,135.01,134.99,1.48135271]
[1725923954775,6.4301,135.01,134.98,1.48135237]
[1725923954967,6.4301,135.01,134.99,1.48135175]
[1725923955869,6.4301,135.01,134.98,1.48135155]
[1725923956050,6.4301,135.01,134.99,1.48135083]
[1725923956963,6.4301,135.01,134.98,1.48135118]
[1725923957164,6.4301,135.01,134.99,1.48135094]
[1725923958352,6.4301,135.01,134.98,1.48135188]
[1725923958559,6.4301,135.01,134.99,1.48135166]
[1725923959477,6.4301,135.01,134.98,1.48135089]
[1725923959677,6.4301,135.01,134.99,1.48134996]
[1725923960782,6.4301,135.01,134.98,1.48135057]
[1725923960961,6.4301,135.01,134.99,1.48135086]
[1725923961862,6.4301,135.01,134.98,1.48131507]
[1725923962064,6.4301,135.01,134.99,1.48131499]
[1725923962260,6.4301,135.01,134.97,20.0]
[1725923962572,6.4301,135.01,134.98,20.0]
[1725923962770,6.4301,135.01,134.96,20.0]
[1725923963773,6.4301,135.01,134.97,1.48155265]
[1725923965387,6.4301,135.01,134.96,20.0]
[1725923965594,6.4301,135.01,134.97,1.48145468]
[1725923967291,6.4301,135.01,134.98,1.48145461]
[1725923967477,6.4301,135.01,134.96,20.0]
[1725923967676,6.4301,135.01,134.97,1.48157799]
[1725923978804,6.4301,135.01,134.93,18.52152617]
[1725923978805,15.6805,135.0,134.93,15.83174673]
[1725923978972,6.2563,134.98,134.93,8.10806585]
[1725923979177,6.2563,134.98,134.91,50.0]
[1725923981679,6.2563,134.98,134.92,20.0]
[1725923984806,6.2563,134.98,134.93,1.48209266]
[1725923985311,6.2563,134.98,134.93,51.48209266]
[1725923988611,6.2563,134.98,134.94,20.0]
[1725923988815,6.2563,134.98,134.95,1.48177123]
[1725923989209,6.2563,134.98,134.96,5.72160394]
[1725923989404,6.2563,134.98,134.97,5.72160394]
[1725923992094,6.2563,134.98,134.94,20.0]
[1725923992295,6.2563,134.98,134.97,5.72046999]
[1725923992514,6.2563,134.98,134.95,5.72046999]
[1725923992888,6.2563,134.98,134.96,5.72046999]
[1725923993090,6.2563,134.98,134.94,20.0]
[1725923993091,6.2563,134.98,134.97,5.72046999]
[1725923998998,6.2563,134.98,134.97,5.71931157]
[1725924000818,15.6805,135.0,134.97,5.71931157]
[1725924000999,15.6805,135.0,134.98,5.71931157]
[1725924001198,15.6805,135.0,134.95,1.48171925]
[1725924001421,15.6805,135.0,134.96,5.71876992]
[1725924001627,15.6805,135.0,134.97,5.71876992]
[1725924001918,15.6805,135.0,134.98,5.71876992]
[1725924002123,15.6805,135.0,134.99,5.71893846]
[1725924004503,15.6805,135.0,134.99,5.71862381]
[1725924005321,6.065,135.02,134.99,5.71862381]
[1725924005621,6.065,135.02,135.0,5.71862381]
[1725924005918,6.065,135.02,134.97,50.0]
[1725924006103,6.065,135.02,134.98,7.19879174]
[1725924006420,16.3101,135.03,134.99,7.19873797]
[1725924006602,16.3101,135.03,135.0,5.71740302]
[1725924006804,16.3101,135.03,135.01,5.71740302]
[1725924007002,16.3101,135.03,134.99,1.48133495]
[1725924007210,16.3101,135.03,135.0,5.71508832]
[1725924007508,16.3101,135.03,135.01,5.71508832]
[1725924007713,16.3101,135.03,134.99,1.48133495]
[1725924007915,16.3101,135.03,134.98,21.4812925]
[1725924008225,16.3101,135.03,135.0,5.71518616]
[1725924008524,16.3101,135.03,135.01,5.71519516]
[1725924008819,16.3101,135.03,135.0,5.71518616]
[1725924009028,16.3101,135.03,135.01,5.71512946]
[1725924009205,16.3101,135.03,135.0,5.71518616]
[1725924009398,16.3101,135.03,135.01,5.71518251]
[1725924009617,16.3101,135.03,135.0,5.71518616]
[1725924009823,16.3101,135.03,135.01,5.71509807]
[1725924010010,16.3101,135.03,134.99,1.48129503]
[1725924010204,16.3101,135.03,135.0,5.71504072]
[1725924010407,16.3101,135.03,135.01,5.71504072]
[1725924010629,16.3101,135.03,134.98,20.0]
[1725924010924,16.3101,135.03,134.99,5.71549222]
[1725924011105,16.3101,135.03,134.98,20.0]
[1725924011532,16.3101,135.03,134.99,5.71549175]
[1725924011696,16.3101,135.03,135.0,5.71549175]
[1725924011899,16.3101,135.03,135.01,5.71549175]
[1725924012211,16.3101,135.03,134.98,20.0]
[1725924012417,16.3101,135.03,134.99,5.71648688]
[1725924012720,16.3101,135.03,135.0,5.71648688]
[1725924012921,16.3101,135.03,135.01,5.71648688]
[1725924013219,16.3101,135.03,134.99,1.48131316]
[1725924013422,16.3101,135.03,135.0,5.71729803]
[1725924013602,16.3101,135.03,135.01,5.71729803]
[1725924013925,16.3101,135.03,134.99,1.48131316]
[1725924014224,16.3101,135.03,135.0,5.71727887]
[1725924014405,16.3101,135.03,135.01,5.71727887]
[1725924014618,16.3101,135.03,134.99,1.48130999]
[1725924014928,16.3101,135.03,135.0,5.71717785]
[1725924015138,16.3101,135.03,135.01,5.71717785]
[1725924015332,16.3101,135.03,134.99,1.48130999]
[1725924015537,16.3101,135.03,135.0,5.7170958]
[1725924015738,16.3101,135.03,135.01,5.7170958]
[1725924016039,16.3101,135.03,134.98,10.33903411]
[1725924016706,16.3101,135.03,134.99,1.48122483]
[1725924017827,6.1048,135.05,134.99,50.0]
[1725924018334,6.1048,135.05,135.0,11.8201629]
[1725924022126,16.0041,135.07,135.0,11.8201629]
[1725924022318,16.0041,135.07,135.01,50.0]
[1725924026444,16.0041,135.07,134.99,50.0]
[1725924026737,16.0041,135.07,135.0,10.33903411]
[1725924028719,16.0041,135.07,135.01,50.0]
[1725924031031,16.0041,135.07,135.02,1.48096415]
[1725924031539,16.0041,135.07,135.02,11.81999826]
[1725924032351,6.5205,135.08,135.02,11.81999826]
[1725924033625,6.5205,135.08,135.01,50.0]
[1725924034254,6.5205,135.08,135.01,60.33903411]
[1725924037730,6.5205,135.08,135.02,1.48080115]
[1725924038147,6.5205,135.08,135.02,21.48080115]
[1725924040829,6.5205,135.08,135.02,20.0]
[1725924041253,6.5205,135.08,135.03,1.48084864]
[1725924044652,6.5205,135.08,135.03,11.81988275]
[1725924046767,6.5205,135.08,135.02,20.0]
[1725924049252,6.5205,135.08,135.03,1.48091093]
[1725924055470,6.5205,135.08,135.03,61.81994504]
[1725924055652,16.8892108,135.11,135.05,60.33903411]
[1725924055853,16.8892108,135.11,135.06,1.48048169]
[1725924056262,16.8892108,135.11,135.07,10.33903411]
[1725924056564,16.8892108,135.11,135.08,1.48029461]
[1725924056958,0.8298108,135.11,135.08,1.48029461]
[1725924057166,0.8298108,135.11,135.09,50.0]
[1725924057368,0.8298108,135.11,135.1,1.4800542]
[1725924057669,0.8298108,135.11,135.09,60.33903411]
[1725924058866,22.3,135.22,135.09,60.33903411]
[1725924058867,268.3261764,135.23,135.09,60.33903411]
[1725924059062,43.58818196,135.22,135.09,60.33903411]
[1725924059475,45.12549,135.21,135.09,60.33903411]
[1725924059680,0.12549,135.19,135.09,60.33903411]
[1725924059973,45.0,135.19,135.1,1.4799839]
[1725924060173,16.24384433,135.23,135.11,1.47987164]
[1725924060353,45.0,135.22,135.11,1.47987164]
[1725924060752,45.0,135.22,135.11,11.81890575]
[1725924061176,0.12549,135.2,135.11,11.81890575]
[1725924061353,45.12549,135.2,135.11,11.81890575]
[1725924061552,20.0,135.19,135.11,11.81890575]
[1725924061883,22.1202,135.18,135.1,0.12549]
[1725924063866,22.1202,135.18,135.09,60.33903411]
[1725924064669,22.1202,135.18,135.1,1.4799157]
[1725924064868,22.1202,135.18,135.11,1.47992371]
[1725924065876,22.1202,135.18,135.1,1.47995878]
[1725924066082,22.1202,135.18,135.11,1.47995704]
[1725924067075,22.1202,135.18,135.12,1.47993382]
[1725924067276,22.1202,135.18,135.1,1.47993385]
[1725924067481,22.1202,135.18,135.09,60.33903411]
[1725924067482,22.1202,135.18,135.11,1.47993433]
[1725924068561,22.1202,135.18,135.12,1.47993439]
[1725924068761,22.1202,135.18,135.11,50.0]
[1725924069069,15.03470089,135.23,135.12,1.47983273]
[1725924069070,22.8468,135.22,135.12,1.47983273]
[1725924069268,22.8468,135.22,135.13,10.33903411]
[1725924069478,22.8468,135.22,135.14,1.47966063]
[1725924069782,22.8468,135.22,135.15,1.47958165]
[1725924070683,20.0,135.21,135.14,1.47955012]
[1725924070867,20.0,135.21,135.15,1.47957558]
[1725924071178,15.03470089,135.23,135.15,1.47953944]
[1725924071374,15.03470089,135.23,135.16,1.47953944]
[1725924071583,15.03470089,135.23,135.15,60.33903411]
[1725924071761,15.03470089,135.23,135.15,50.0]
[1725924071964,15.03470089,135.23,135.16,1.479454]
[1725924072361,0.8464117,135.24,135.15,50.0]
[1725924072772,20.8464117,135.24,135.15,50.0]
[1725924073487,20.8464117,135.24,135.16,1.47935504]
[1725924073777,0.12549,135.23,135.16,1.47935682]
[1725924073983,0.12549,135.23,135.15,50.0]
[1725924074360,0.12549,135.23,135.16,1.47942892]
[1725924074789,20.8464117,135.24,135.17,50.0]
[1725924075290,20.8464117,135.24,135.16,15.20639]
[1725924075760,20.8464117,135.24,135.16,15.0809]
[1725924076369,0.12549,135.23,135.16,15.0809]
[1725924076870,20.8464117,135.24,135.16,15.0809]
[1725924078371,0.12549,135.23,135.16,15.0809]
[1725924080798,20.8464117,135.24,135.16,65.0809]
[1725924084798,20.8464117,135.24,135.16,15.0809]
[1725924085288,20.8464117,135.24,135.17,51.47936012]
[1725924085484,20.8464117,135.24,135.18,1.47908696]
[1725924086790,20.8464117,135.24,135.17,50.0]
[1725924090516,20.8464117,135.24,135.18,1.47922271]
[1725924095096,20.8464117,135.24,135.17,50.0]
[1725924110727,34.74497047,135.24,135.17,50.0]
[1725924112109,20.8464117,135.24,135.18,1.47930935]
[1725924114434,0.8464117,135.24,135.18,1.47930935]
[1725924114755,0.8464117,135.24,135.19,60.33903411]
[1725924115034,0.8464117,135.24,135.22,50.0]
[1725924115353,0.8464117,135.24,135.23,1.47856063]
[1725924115840,0.8464117,135.24,135.22,50.0]
[1725924118205,0.8464117,135.24,135.2,95.12549]
[1725924121247,0.8464117,135.24,135.18,50.0]
[1725924121451,0.8464117,135.24,135.16,60.33903411]
[1725924123868,0.8464117,135.24,135.17,1.47920445]
[1725924124670,0.8464117,135.24,135.18,1.47922025]
[1725924126067,0.8464117,135.24,135.16,60.33903411]
[1725924126857,0.8464117,135.24,135.17,1.47927842]
[1725924127048,0.8464117,135.24,135.18,1.47927267]
[1725924128063,0.8464117,135.24,135.17,1.47926135]
[1725924128275,0.8464117,135.24,135.18,1.47926135]
[1725924129179,0.12549,135.21,135.13,7.65754362]
[1725924129366,81.20799,135.21,135.12,50.0]
[1725924129671,81.20799,135.21,135.1,50.0]
[1725924130176,81.20799,135.21,135.12,50.0]
[1725924132488,36.0825,135.21,135.13,1.47973474]
[1725924133672,16.0825,135.21,135.14,50.0]
[1725924133985,16.0825,135.21,135.16,50.0]
[1725924134963,16.0825,135.21,135.17,1.47933855]
[1725924135160,16.0825,135.21,135.16,50.0]
[1725924138396,16.0825,135.21,135.14,50.0]
[1725924141598,16.0825,135.21,135.16,50.0]
[1725924141881,16.0825,135.21,135.17,1.47920547]
[1725924142082,16.0825,135.21,135.18,1.47920502]
[1725924142473,16.0825,135.21,135.16,50.0]
[1725924143395,30.34926813,135.24,135.18,50.0]
[1725924143694,30.34926813,135.24,135.19,1.47898792]
[1725924144988,30.34926813,135.24,135.18,50.0]
[1725924148380,30.34926813,135.24,135.15,60.33903411]
[1725924148677,30.34926813,135.24,135.15,50.0]
[1725924149501,29.84926813,135.24,135.17,50.0]
[1725924150595,29.84926813,135.24,135.18,1.47908522]
[1725924150905,29.84926813,135.24,135.17,50.0]
[1725924151797,29.84926813,135.24,135.15,10.33903411]
[1725924151798,16.6137117,135.24,135.2,50.0]
[1725924152002,16.6137117,135.24,135.21,1.47883175]
[1725924152309,0.3464117,135.24,135.22,50.0]
[1725924152503,0.3464117,135.24,135.23,1.47865185]
[1725924153684,0.3464117,135.24,135.2,50.0]
[1725924155293,0.3464117,135.24,135.18,0.12549]
[1725924155605,0.3464117,135.24,135.17,50.0]
[1725924155810,15.9567,135.23,135.15,50.0]
[1725924156177,15.9567,135.23,135.14,7.71125843]
[1725924156377,15.9567,135.23,135.13,50.0]
[1725924156886,6.1268,135.22,135.13,50.0]
[1725924157388,6.1268,135.22,135.13,60.33903411]
[1725924157897,6.1268,135.22,135.09,23.64443567]
[1725924157898,15.9567,135.23,135.17,50.0]
[1725924158101,15.9567,135.23,135.18,1.47902023]
[1725924159683,15.9567,135.23,135.19,50.0]
[1725924159884,15.9567,135.23,135.2,1.47895383]
[1725924160183,15.9567,135.23,135.21,1.47891809]
[1725924160384,15.9567,135.23,135.19,50.0]
[1725924161303,15.9567,135.23,135.2,1.47896353]
[1725924161500,15.9567,135.23,135.21,1.47894567]
[1725924162099,15.9567,135.23,135.19,50.0]
[1725924162409,15.9567,135.23,135.2,1.4789463]
[1725924162587,15.9567,135.23,135.21,1.47896363]
[1725924162905,15.9567,135.23,135.19,50.0]
[1725924165305,15.9567,135.23,135.2,1.47898526]
[1725924165503,15.9567,135.23,135.21,1.47898524]
[1725924166608,15.9567,135.23,135.2,1.47898797]
[1725924166812,15.9567,135.23,135.21,1.47898521]
[1725924167000,0.3464117,135.24,135.19,50.0]
[1725924167206,0.3464117,135.24,135.2,5.67838711]
[1725924167412,0.3464117,135.24,135.19,50.0]
[1725924167708,0.3464117,135.24,135.2,5.6783794]
[1725924167886,0.3464117,135.24,135.19,50.0]
[1725924168096,0.3464117,135.24,135.2,5.67888245]
[1725924168303,0.3464117,135.24,135.19,50.0]
[1725924168493,0.3464117,135.24,135.2,5.67874418]
[1725924168696,0.3464117,135.24,135.19,50.0]
[1725924168989,0.3464117,135.24,135.2,5.67874135]
[1725924169188,0.3464117,135.24,135.19,50.0]
[1725924169694,0.3464117,135.24,135.2,5.67876467]
[1725924170014,0.3464117,135.24,135.19,50.0]
[1725924170218,0.3464117,135.24,135.17,50.0]
[1725924170796,0.3464117,135.24,135.16,0.12549]
[1725924171002,0.3464117,135.24,135.16,65.12549]
[1725924171204,0.3464117,135.24,135.17,50.0]
[1725924173710,15.0638,135.23,135.16,20.0]
[1725924173917,15.0638,135.23,135.15,50.12549]
[1725924180223,15.0638,135.23,135.16,1.47927146]
[1725924180522,15.0638,135.23,135.17,50.0]